Cogmind - Beta 13 @@@ ROGUE MODE // 2024.04.07 @ 17:45:12 Player: DURANDAL Result: Destroyed by CY-ZZV(R) with Subdweller Laser Performance ------------- Evolutions (0) 0 Regions Visited (3) 600 Robots Destroyed (18) 90 Value Destroyed (410) 410 Prototype IDs (0) 0 Alien Tech Used (0) 0 Bonus (0) 0 TOTAL SCORE: 1100 Bonus ------- None Cogmind --------- Core Integrity 0/250 Matter 280/300 Energy 22/100 System Corruption 0% Temperature Cool (6) Movement Core (500) Ox9 Location -10/Subcaves Parts ------- > --- POWER (1) -------- Subdweller Power Source > --- PROPULSION (2) --- (None) > --- UTILITY (2) ------ Large Storage Unit Subdweller Optics > --- WEAPON (2) ------- Mining Claw > --- INVENTORY (15) --- Small Storage Unit Medium Storage Unit Medium Matter Pod (100) Structural Scanner Transport Network Coupler Light Armor Plating Hacking Suite Grenade Launcher Rocket Launcher Peak State ------------ > --- POWER ------------ Light Ion Engine > --- PROPULSION ------- Light Treads Light Treads > --- UTILITY ---------- Medium Storage Unit Shield Generator > --- WEAPON ----------- Light Assault Rifle Light Assault Rifle > --- INVENTORY -------- Small Storage Unit Medium Matter Pod Hacking Suite EM Pulse Gun Small Laser Small Laser Rocket Launcher [Rating: 9] Favorites ----------- Power Light Ion Engine Engine Light Ion Engine Propulsion Light Treads Treads Light Treads Utility Large Storage Unit Device Shield Generator Storage Large Storage Unit Weapon Light Assault Rifle Energy Gun Small Laser Ballistic Gun Light Assault Rifle Slashing Weapon Mining Claw Build | -11 -10 -10 -10 ------- Run | Yrd Mat Min Sub Slots Evolved . | . . . . Power . | . . . . Propulsion . | . . . . Utility . | . . . . Weapon . | . . . . Parts Attached 20 | 6 6 . 8 Power 2 | 1 . . 1 Engine 2 | 1 . . 1 Core . | . . . . Reactor . | . . . . Propulsion 3 | 2 1 . . Treads 3 | 2 1 . . Leg . | . . . . Wheel . | . . . . Hover . | . . . . Flight . | . . . . Utility 6 | 1 3 . 2 Device 3 | . 1 . 2 Storage 3 | 1 2 . . Processor . | . . . . Hackware . | . . . . Protection . | . . . . Artifact . | . . . . Weapon 9 | 2 2 . 5 Energy Gun 5 | 2 . . 3 Energy Cannon . | . . . . Ballistic Gun 3 | . 2 . 1 Ballistic Cannon . | . . . . Launcher . | . . . . Special Weapon . | . . . . Impact Weapon . | . . . . Slashing Weapon 1 | . . . 1 Piercing Weapon . | . . . . Special Melee Weapon . | . . . . Unidentified Prototypes . | . . . . Parts Lost 12 | . 1 . 11 Power 1 | . . . 1 Propulsion 3 | . 1 . 2 Utility 2 | . . . 2 Weapon 6 | . . . 6 Highest Loss Streak 4 | . 1 . 4 To Critical Strikes . | . . . . Average Slot Usage (%) 88 | . 91 100 77 Engine 13 | . 14 14 13 Treads 21 | . 23 28 15 Device 12 | . 10 14 13 Storage 14 | . 14 14 14 Energy Gun 4 | . 7 . 6 Ballistic Gun 20 | . 20 28 14 Naked Turns . | . . . . Heaviest Build 29 | 10 27 27 29 Greatest Support 40 | 40 40 40 40 Greatest Overweight (x) 9 | . 1 . 9 Average Overweight (x) . | . . . 1 Largest Inventory Capacity 15 | 8 15 15 15 Average Capacity 13 | 7 11 15 15 Most Carried 15 | 4 12 14 15 Average Carried 11 | 1 6 13 13 Final Capacity 15 | 8 15 15 15 Final Carried 14 | 1 12 14 9 Class Distribution -------------------- 83% | Mutant 16% | Scavenger-Mutant Dominant Class ---------------- Mutant | -10/Materials Mutant | -10/Mines Mutant | -10/Subcaves Resources | -11 -10 -10 -10 ----------- Run | Yrd Mat Min Sub Matter Collected 541 | 208 275 6 52 Remotely . | . . . . Salvage Created 624 | . 389 64 171 Parts 36 | . 21 5 10 Haulers Intercepted 2 | . 2 . . Recyclers Shooed . | . . . . Parts Field Recycled . | . . . . Retrieved Matter . | . . . . Parts Self-Destructed 4 | . . . 4 Prevented . | . . . . Kills | -11 -10 -10 -10 ------- Run | Yrd Mat Min Sub Combat Hostiles Destroyed 13 | . 7 2 4 Guns 13 | . 7 2 4 Classes Destroyed 7 | . 5 1 1 Worker 1 | . 1 . . Builder 1 | . . 1 . Hauler 2 | . 2 . . Operator 1 | . 1 . . Swarmer 4 | . 2 2 . Grunt 7 | . 5 . 2 Subdweller 2 | . . . 2 Best Kill Streak 3 | . 2 3 2 Combat Bots Only 2 | . 2 2 2 Max Kills in Single Turn 1 | . 1 1 1 Gunslinging . | . . . . Exploded . | . . . . Melee . | . . . . Uniques/NPCs Destroyed . | . . . . Combat | -11 -10 -10 -10 -------- Run | Yrd Mat Min Sub Hostile Shots Fired 146 | . 68 8 70 Missed 42 | . 19 2 21 Damage Taken 1360 | . 444 35 881 Core 260 | . 53 . 207 Absorbed by Shields 156 | . 115 14 27 Core Remaining (%) 100 | 100 . . . Volleys Fired 88 | . 48 3 37 Largest 2 | . 2 2 2 Hottest 80 | . 80 40 60 Shots Fired 152 | . 96 6 50 Gun 152 | . 96 6 50 Cannon . | . . . . Launcher . | . . . . Special . | . . . . Kinetic 102 | . 68 6 28 Thermal 44 | . 28 . 16 Explosive . | . . . . Electromagnetic 6 | . . . 6 Robot Hit Streak 16 | . 11 3 16 Robot Miss Streak 3 | . 3 2 2 Penetration Max . | . . . . Secondary Targets 1 | . 1 . . Max Gunslinging Chain 1 | . 1 . . Shots Hit Robots 104 | . 61 3 40 Core Hits 39 | . 22 3 14 Critical Kills 1 | . . . 1 Critical Parts Destroyed 1 | . . 1 . Critical Strikes 3 | . . 1 2 Destroy 3 | . . 1 2 Melee Attacks . | . . . . Impact . | . . . . Slashing . | . . . . Piercing . | . . . . Sneak Attacks . | . . . . Combat Hostiles . | . . . . Follow-up Attacks . | . . . . Damage Inflicted 951 | . 542 50 359 Guns 926 | . 541 26 359 Cannons . | . . . . Explosions . | . . . . Melee . | . . . . Ramming 25 | . 1 24 . Kinetic 542 | . 349 26 167 Thermal 321 | . 192 . 129 Explosive . | . . . . Electromagnetic 63 | . . . 63 Impact . | . . . . Slashing . | . . . . Piercing . | . . . . Highest Corruption . | . . . . Average Corruption . | . . . . Corruption Purged . | . . . . Corruption Blocked . | . . . . Overload Shots . | . . . . Overflow Damage . | . . . . Projectiles . | . . . . Explosions . | . . . . Melee . | . . . . Knockbacks . | . . . . Impact . | . . . . Kinetic . | . . . . Secondary . | . . . . Self-Inflicted Damage . | . . . . Shots . | . . . . Rammed 4 | . . 4 . Targets Rammed 5 | . 1 4 . Kicked . | . . . . Crushed 1 | . 1 . . Highest Temperature 108 | . 108 . . Average Temperature 29 | . 29 . . Received Heat Transfer 444 | . 189 . 255 Siege Activations . | . . . . Robots Corrupted . | . . . . Combat Hostiles . | . . . . Parts Fried . | . . . . Impact Corruptions . | . . . . Robots Melted . | . . . . Combat Hostiles . | . . . . Parts Melted 1 | . . . 1 Heat Transferred 725 | . 425 . 300 Parts Sabotaged . | . . . . Parts Stolen . | . . . . Parts Stripped . | . . . . Power Chain Reactions . | . . . . Alert | -11 -10 -10 -10 ------- Run | Yrd Mat Min Sub Peak Influence 162 | . 162 63 . Initial 8 | . . 8 . Average 36 | . 53 21 . Maximum Alert Level . | . . . . Low Security (%) 100 | 100 100 100 . Level 1 . | . . . . Level 2 . | . . . . Level 3 . | . . . . Level 4 . | . . . . Level 5 . | . . . . High Security . | . . . . Max Security . | . . . . Squads Dispatched 1 | . 1 . . Investigation . | . . . . Extermination . | . . . . Reinforcement 1 | . 1 . . Assault . | . . . . Garrison . | . . . . Intercept . | . . . . Searches Triggered . | . . . . Construction Impeded . | . . . . Haulers Reinforced . | . . . . Active Scanning Responses . | . . . . Cargo Convoy Interrupts . | . . . . Stealth | -11 -10 -10 -10 --------- Run | Yrd Mat Min Sub Distress Signals 2 | . 2 . . Communications Jammed . | . . . . Distress Signals . | . . . . Times Spotted 24 | . 16 3 5 Peak Tracking Total 4 | . 4 3 2 Tactical Retreats . | . . . . Traps | -11 -10 -10 -10 ------- Run | Yrd Mat Min Sub Traps Triggered . | . . . . Indirectly . | . . . . Trap Hack Attempts . | . . . . Triggered . | . . . . Disarmed 6 | . 6 . . Reprogrammed . | . . . . Reused . | . . . . Traps Extracted . | . . . . Installed . | . . . . Triggered . | . . . . Machines | -11 -10 -10 -10 ---------- Run | Yrd Mat Min Sub Machines Disabled . | . . . . Max in Single Turn . | . . . . Machines Repaired . | . . . . Machines Dismantled . | . . . . Machines Sabotaged . | . . . . Overloaded Fab Kills . | . . . . Hacking | -11 -10 -10 -10 --------- Run | Yrd Mat Min Sub Machines Accessed 3 | . 3 . . Terminals 3 | . 3 . . Fabricators . | . . . . Repair Stations . | . . . . Recycling Units . | . . . . Scanalyzers . | . . . . Garrison Access . | . . . . Total Hacks 3 | . 3 . . Successful 3 | . 3 . . Failed . | . . . . Catastrophic . | . . . . Database Lockouts . | . . . . Manual . | . . . . Terminals 3 | . 3 . . Fabricators . | . . . . Repair Stations . | . . . . Recycling Units . | . . . . Scanalyzers . | . . . . Garrison Access . | . . . . Terminal Hacks 3 | . 3 . . Unreport Threat 1 | . 1 . . Disarm Traps 1 | . 1 . . Zone Layout 1 | . 1 . . Fabricator Hacks . | . . . . Repair Station Hacks . | . . . . Recycling Unit Hacks . | . . . . Scanalyzer . | . . . . Garrison Access Hacks . | . . . . Unauthorized Hacks . | . . . . Terminals . | . . . . Fabricators . | . . . . Repair Stations . | . . . . Recycling Units . | . . . . Scanalyzers . | . . . . Garrison Access . | . . . . Data Cores Recovered . | . . . . Used . | . . . . Hacking Detections 1 | . 1 . . Full Trace Events . | . . . . Feedback Events . | . . . . Feedback Blocked . | . . . . Robot Schematics Acquired . | . . . . Robots Built . | . . . . Authchips . | . . . . Time . | . . . . Total Robot Build Rating . | . . . . Part Schematics Acquired . | . . . . Parts Built . | . . . . Authchips . | . . . . Time . | . . . . Total Part Build Rating . | . . . . Parts Repaired . | . . . . Time . | . . . . Parts Recycled . | . . . . Recycled Matter . | . . . . Retrieved Matter . | . . . . Retrieved Components . | . . . . Parts Scanalyzed . | . . . . Part Schematics Acquired . | . . . . Parts Damaged . | . . . . Bothacking | -11 -10 -10 -10 ------------ Run | Yrd Mat Min Sub Used RIF Installer . | . . . . Robots Hacked . | . . . . Non-combat . | . . . . Combat . | . . . . Robot Hacks Applied . | . . . . Relay Couplers Released . | . . . . Fabnet Peak Effective % . | . . . . Robots Rewired . | . . . . Allies Hacked . | . . . . Hacks Repelled . | . . . . Allies | -11 -10 -10 -10 -------- Run | Yrd Mat Min Sub Total Allies . | . . . . Largest Group . | . . . . Highest-Rated Group . | . . . . Highest-Rated Ally . | . . . . Total Orders . | . . . . Ally Attacks . | . . . . Total Damage . | . . . . Kills . | . . . . Allies Corrupted . | . . . . Allies Melted . | . . . . Intel | -11 -10 -10 -10 ------- Run | Yrd Mat Min Sub Robot Analysis Total . | . . . . Derelict Logs Recovered 3 | . . 2 1 Drone Launches . | . . . . Drone Recoveries . | . . . . Exploration | -11 -10 -10 -10 ------------- Run | Yrd Mat Min Sub Turns Passed 2695 | 56 791 829 1019 Spaces Moved 1271 | 32 345 506 388 Core 84 | 6 . . 78 Treads 1187 | 26 345 506 310 Legs . | . . . . Wheels . | . . . . Hover . | . . . . Flight . | . . . . Fastest Speed 50 | 50 160 160 160 Average Speed 184 | 139 176 160 227 Slowest Speed 500 | 160 240 160 500 Overloaded Moves . | . . . . Propulsion Burnouts . | . . . . Robots Hopped . | . . . . Cave-ins Triggered . | . . . . Exploration Rate (%) 45 | 3 52 95 30 Regions Visited 3 Branch Regions 2 Pre-discovered Areas 1 | . . 1 . Known Exits Taken . | . . . . Unknown Exits Taken 3 | 1 1 1 . Scrap Searched 1 | . . 1 . Spaces Dug . | . . . . Terrain Destroyed . | . . . . Melee . | . . . . Projectile . | . . . . AOE . | . . . . Terrain Rammed . | . . . . Walls Destroyed . | . . . . Machines Disabled . | . . . . Actions | -11 -10 -10 -10 --------- Run | Yrd Mat Min Sub Total 1487 | 44 443 518 482 Wait 81 | . 31 4 46 Move 1268 | 31 344 505 388 Hop . | . . . . Pick Up 25 | 7 13 2 3 Fast Attach . | . . . . Attach 16 | 6 2 . 8 Detach . | . . . . Swap 4 | . 4 . . Drop . | . . . . Fire 88 | . 48 3 37 Melee . | . . . . Ram . | . . . . Kick . | . . . . Crush 5 | . 1 4 . Escape Stasis . | . . . . Rewire . | . . . . Trap . | . . . . Miscellaneous . | . . . . Route ------- -11/Scrapyard -10/Materials (discovered 3 exits: [*Mat x2] / [*Min]) -10/Mines (discovered 3 exits: [*Mat x2] / [*Sub]) -10/Subcaves History --------- Turn | Location | Event 13 | -11/Scrapyard | Discovered new exit (range 16) 57 | -11/Scrapyard | Entered Materials 318 | -10/Materials | Build established: Mutant 350 | -10/Materials | Discovered new exit (range 5) 451 | -10/Materials | Discovered new exit (range 13) 749 | -10/Materials | Discovered new exit (range 16) 848 | -10/Materials | Entered Mines 1034 | -10/Mines | Discovered new exit (range 16) 1111 | -10/Mines | Learned 8 Materials zone layouts 1186 | -10/Mines | Discovered new exit (range 5) 1187 | -10/Mines | Learned location of Storage (-7) 1438 | -10/Mines | Learned 2 Materials zone layouts 1662 | -10/Mines | Discovered new exit (range 9) 1677 | -10/Mines | Entered Subcaves 1684 | -10/Subcaves | Learned Materials terminal intel 1817 | -10/Subcaves | Lost 3 parts (1p1u1w) 2092 | -10/Subcaves | Build established: Scavenger-Mutant 2265 | -10/Subcaves | Lost 3 parts (2n1w) 2521 | -10/Subcaves | Core integrity fell below 50% 2541 | -10/Subcaves | Build established: Mutant 2682 | -10/Subcaves | Core integrity fell below 20% 2696 | -10/Subcaves | Destroyed by CY-ZZV(R) with Subdweller Laser Last Messages --------------- 02252_ Ion Engine fries itself beyond repair. 02253_ Acquired 24 matter. 02255_ Subatomizers dissect the Aluminum Leg. 02256_ Sml. Laser fries itself beyond repair. 02263_ Aluminum Leg fries itself beyond repair. 02295_ Sub. Optics shoots sparks and powers down. 02524_ Broken Sub. Optics destroyed. 02525_ G8-245(R) suffers critical hit (Destroy). 02531_ Sub. Laser melted. 02531_ G8-245(R) destroyed. 02537_ Subatomizers dissect the Sub. Optics. 02547_ Acquired 3 matter. 02552_ Subatomizers dissect the Sub. Optics. 02556_ Acquired Sub. Optics. 02562_ Subatomizers dissect the Disposable Heat Sink. 02637_ Lgt. Assault Rifle destroyed. 02645_ Sml. Laser destroyed. 02687_ EM Pulse Gun destroyed. Map ----- +----------------------------------------------------+ | ???????????????????### ### #??? | | ?????????????????????## #??? | | ??????????????????????# ##??? | | ????????????????#####?#& ###???? | | ???????????????## ###%! ## #?????? | | ???????????????# # ## ##?????? | | ???????????????# ## #???????? | | ???????????????# ## # #???? | | ????????????????# #??? | | ????????????????## ##??? | | ?????????????????## ## # # #??? | | ????????????????### #? #?#? #??? | | ????????????????# #? ##???? #??? | | ????????????????# #?# " ##?????????? | | ???????????????## #?? "" ##??????????? | | ???????????????# ##??###"#???????????? | | ???????????????# ##??????##???????????? | | ???????????????## #????????????????????? | | ???????????????## #????????????????????? | | ??????????????## #????????????????????? | | ??????????????# ##????????????????????? | | ??????????????# ##????????? ??????????? | | ??????????????# #???? ??" ??????????? | | ??#########??## ###?? # ""??????????? | | ?##" " "#### ##? ???????????? | | ?# """ """"### @ ## " ???????? | | ?# " "" "" ## R ""????????? | | ?#"""""" ## ##### ### ""???????? | | ???# ##" # ###?? ##???????????????? | | ???##???### ## # ### ##????????????????? | | ?????????# #< #?????????????????? | | ?????????# ##????????????????? | | ?????????# #????????????????? | | ?????????# # #????????????????? | | ?????????#####" #????????????????? | | ?????????????# # #????????????????? | | ?????????????## # #????????????????? | | ??????????????# ###????????????????? | | ??????????????# #??????????????????? | | ??????????????# #??????????????????? | | ??????????????# # ##?????????????????? | | ??????????????# # #?????????????????? | | ??????????????# ## #?????????????????? | | ??????????????## ## ##?????????????????? | | ??????????????## # ##?????????????????? | | ??????????????# ## #?????????????????? | | ??????????????##### #?????????????????? | | ??????????????????# #??###########??### | | ?????????????????## #??# # # #### | | ?????????????????# && ##??# | +----------------------------------------------------+ Best States ------------- Heat Dissipation 25 Energy Generation 15 Energy Capacity 200 Matter Stores 300 Matter Capacity 300 Sight Range 21 Terrain Scan Density 10 Evasion (%) 40 Recoil Reduction 2 Item Schematics ----------------- None Robot Schematics ------------------ None Fabricated ------------ Nothing Alien Tech Used ----------------- None Achievements -------------- None Challenges ------------ None Game ------ Seed ThermalTrapSaw Manual? 0 Play Time 00:16:14 Cumulative 11.3 hours Start 2024.04.07 @ 17:07:26 End 2024.04.07 @ 17:45:12 Sessions 1 Manual Loads 0 Difficulty Rogue Special Mode None Game No. 21 Rogue 21 Adventurer 0 Explorer 0 Win Type - Total 0 Types 0/0/0/0/0/0/0/0/0 Lore% 15 Gallery% 13 Achievement% 14 Wizard Run 0 Options --------- Layout 1 ASCII 0 Keyboard 0 Movement Numpad Keybinds 0 Fullscreen 1 Font 24/Smallcaps Map View 50x35 Zoom Use 0% Tactical HUD 1 Map Filters NONE Filters NONE Steam 1 RUN: a51e9375-b64c-44b8-8f1c-055f2d6739c5